[Event "FWCT 2019"]
[Site "Kazan"]
[Date "2019.06.08"]
[Round "7.4"]
[White "Gunina, Valentina"]
[Black "Tan, Zhongyi"]
[Result "1-0"]
[ECO "C42"]
[WhiteElo "2506"]
[BlackElo "2513"]
[Annotator "ChessBase"]
[PlyCount "97"]
[EventDate "2019.05.11"]
[EventType "tourn"]
[EventCountry "RUS"]
[SourceTitle "playchess.com"]
[Source "ChessBase"]
[SourceQuality "1"]
[TimeControl "40/5400+30:1800+30"]

1. e4 {[%emt 0:00:00]} e5 {[%emt 0:00:00]} 2. Nf3 {[%emt 0:00:00]} Nf6 {[%emt 0:00:00]} 3. Nxe5 {[%emt 0:00:00]} d6 {[%emt 0:00:00]} 4. Nf3 {[%emt 0:00:00]} Nxe4 {[%emt 0:00:00]} 5. d4 {[%emt 0:00:19]} d5 {[%emt 0:00:00]} 6. Bd3 {[%emt 0:00:14]} Bd6 {[%emt 0:00:00]} 7. O-O {[%emt 0:00:58]} O-O {[%emt 0:00:02]} 8. Nc3 {[%emt 0:05:45]} Nxc3 {[%emt 0:04:21]} 9. bxc3 {[%emt 0:00:05]} Bg4 {[%emt 0:00:12]} 10. Rb1 {[%emt 0:05:28]} Nd7 {[%emt 0:00:35]} 11. c4 {[%emt 0:10:43]} dxc4 {[%emt 0:03:54]} 12. Bxc4 {[%emt 0:08:58]} Bxf3 {[%emt 0:02:53]} 13. Qxf3 {[%emt 0:00:05]} Qh4 {[%emt 0:00:15]} 14. g3 {[%emt 0:07:17]} Qxd4 {[%emt 0:00:12]} 15. Bd5 {[%emt 0:10:14]} Ne5 {[%emt 0:05:28]} 16. Qe4 {[%emt 0:04:00]} Qxe4 {[%emt 0:15:38]} 17. Bxe4 {[%emt 0:00:02]} Rab8 {[%emt 0:00:26]} 18. Bxb7 {[%emt 0:01:46]} Nc4 {[%emt 0:00:46]} 19. c3 {[%emt 0:06:56]} Be5 {[%emt 0:03:17]} 20. Rb4 {[%emt 0:08:53]} Nb6 {[%emt 0:12:29]} 21. Bc6 {[%emt 0:01:40]} Rfd8 {[%emt 0:00:50]} 22. Rb5 {[%emt 0:05:52]} f6 {[%emt 0:18:23]} 23. Rc5 {[%emt 0:01:50]} Rd3 {[%emt 0:00:47]} 24. c4 {[%emt 0:02:12]} Rbd8 {[%emt 0:03:35]} 25. Be3 {[%emt 0:03:04]} Ra3 {[%emt 0:00:12]} 26. Bh1 {[%emt 0:03:42]} Rxa2 {[%emt 0:02:17]} 27. f4 {[%emt 0:00:16]} Bd6 {[%emt 0:01:42]} 28. Rc6 {[%emt 0:00:26]} Re2 {[%emt 0:00:07]} 29. Bf2 {[%emt 0:00:22]} Nd7 {[%emt 0:03:28]} 30. c5 {[%emt 0:06:58]} Rxf2 {[%emt 0:00:10]} 31. Kxf2 {[%emt 0:00:27]} Nxc5 {[%emt 0:00:35]} 32. Ra1 {[%emt 0:01:09]} Rb8 {[%emt 0:02:27]} 33. Bd5+ {[%emt 0:01:03]} Kf8 {[%emt 0:00:06]} 34. Rxa7 {[%emt 0:00:41]} Rb2+ {[%emt 0:02:03]} 35. Ke3 {[%emt 0:00:43]} Rxh2 {[%emt 0:02:02]} 36. Rcxc7 {[%emt 0:00:55]} Bxc7 {[%emt 0:00:09]} 37. Rxc7 {[%emt 0:00:03]} Na4 {[%emt 0:02:57]} 38. Bb3 {[%emt 0:01:50]} Nb2 {[%emt 0:02:24]} 39. Rf7+ {[%emt 0:00:05]} Ke8 {[%emt 0:00:02]} 40. Rxg7 {[%emt 0:00:00]} h5 {[%emt 0:00:00]} 41. Rh7 {[%emt 0:04:27]} Rh3 {[%emt 0:02:06]} 42. Kf3 {[%emt 0:08:27]} Rh2 {[%emt 0:09:40]} 43. Ke4 {[%emt 0:02:15]} Rh3 {[%emt 0:04:23]} 44. Be6 {[%emt 0:01:53]} Rxg3 {[%emt 0:00:12]} 45. Kf5 {[%emt 0:00:02]} Rf3 {[%emt 0:04:08]} 46. Bd5 {[%emt 0:00:20]} Rf1 {[%emt 0:10:58]} 47. Ke6 {[%emt 0:00:53]} Kd8 {[%emt 0:00:33]} 48. Kd6 {[%emt 0:00:30]} Re1 {[%emt 0:02:12]} 49. Rb7 {[%emt 0:00:21]} 1-0

[Event "FWCT 2019"]
[Site "Kazan"]
[Date "2019.06.09"]
[Round "8.2"]
[White "Tan, Zhongyi"]
[Black "Dzagnidze, Nana"]
[Result "1-0"]
[ECO "D58"]
[WhiteElo "2513"]
[BlackElo "2510"]
[Annotator "ChessBase"]
[PlyCount "97"]
[EventDate "2019.05.11"]
[EventType "tourn"]
[EventCountry "RUS"]
[SourceTitle "playchess.com"]
[Source "ChessBase"]
[SourceQuality "1"]
[TimeControl "40/5400+30:1800+30"]

1. d4 {[%emt 0:00:00]} d5 {[%emt 0:00:00]} 2. Nf3 {[%emt 0:00:00]} Nf6 {[%emt 0:00:03]} 3. c4 {[%emt 0:00:00]} e6 {[%emt 0:00:15]} 4. Nc3 {[%emt 0:00:05]} Be7 {[%emt 0:00:27]} 5. Bg5 {[%emt 0:00:14]} O-O {[%emt 0:00:28]} 6. e3 {[%emt 0:00:04]} h6 {[%emt 0:00:36]} 7. Bh4 {[%emt 0:00:05]} b6 {[%emt 0:00:17]} 8. Be2 {[%emt 0:02:56]} Bb7 {[%emt 0:04:12]} 9. Bxf6 {[%emt 0:00:49]} Bxf6 {[%emt 0:00:49]} 10. cxd5 {[%emt 0:00:06]} exd5 {[%emt 0:02:57]} 11. b4 {[%emt 0:00:06]} c6 {[%emt 0:07:27]} 12. O-O {[%emt 0:00:08]} Qd6 {[%emt 0:07:24]} 13. Qb3 {[%emt 0:05:49]} Nd7 {[%emt 0:00:37]} 14. Rfe1 {[%emt 0:02:56]} Rfe8 {[%emt 0:18:27]} 15. Rad1 {[%emt 0:03:56]} Be7 {[%emt 0:08:24]} 16. b5 {[%emt 0:02:50]} c5 {[%emt 0:01:08]} 17. dxc5 {[%emt 0:02:04]} Nxc5 {[%emt 0:00:02]} 18. Qb1 {[%emt 0:01:09]} Bf8 {[%emt 0:02:49]} 19. Bc4 {[%emt 0:22:09]} dxc4 {[%emt 0:02:11]} 20. Rxd6 {[%emt 0:00:30]} Bxd6 {[%emt 0:00:23]} 21. Rd1 {[%emt 0:00:11]} Ne4 {[%emt 0:15:36]} 22. Qc1 {[%emt 0:05:49]} Red8 {[%emt 0:00:58]} 23. Rd4 {[%emt 0:17:11]} Nxc3 {[%emt 0:00:43]} 24. Qxc3 {[%emt 0:00:04]} Bc5 {[%emt 0:00:34]} 25. Rg4 {[%emt 0:09:14]} Rd1+ {[%emt 0:00:06]} 26. Ne1 {[%emt 0:00:04]} g6 {[%emt 0:00:20]} 27. Kf1 {[%emt 0:00:12]} Rad8 {[%emt 0:00:15]} 28. Ke2 {[%emt 0:05:15]} Rb1 {[%emt 0:03:14]} 29. Qc2 {[%emt 0:00:46]} Rxb5 {[%emt 0:00:14]} 30. Rxg6+ {[%emt 0:02:00]} fxg6 {[%emt 0:04:54]} 31. Qxc4+ {[%emt 0:00:17]} Bd5 {[%emt 0:00:20]} 32. Qxb5 {[%emt 0:00:04]} Bxa2 {[%emt 0:05:47]} 33. Nd3 {[%emt 0:00:07]} Bf8 {[%emt 0:01:21]} 34. Ne5 {[%emt 0:00:37]} Rd5 {[%emt 0:07:23]} 35. Qe8 {[%emt 0:06:03]} Rxe5 {[%emt 0:00:09]} 36. Qxe5 {[%emt 0:00:05]} Bc4+ {[%emt 0:00:06]} 37. Kd2 {[%emt 0:01:14]} b5 {[%emt 0:00:27]} 38. Qe8 {[%emt 0:00:49]} g5 {[%emt 0:01:16]} 39. e4 {[%emt 0:02:19]} a5 {[%emt 0:01:28]} 40. e5 {[%emt 0:00:00]} Kg7 {[%emt 0:00:00]} 41. Qd7+ {[%emt 0:04:42]} Kg6 {[%emt 0:00:42]} 42. Qc6+ {[%emt 0:01:12]} Kf7 {[%emt 0:00:21]} 43. Qf6+ {[%emt 0:00:23]} Ke8 {[%emt 0:00:05]} 44. e6 {[%emt 0:00:13]} Be7 {[%emt 0:00:10]} 45. Qf7+ {[%emt 0:00:58]} Kd8 {[%emt 0:00:01]} 46. Qg8+ {[%emt 0:00:10]} Kc7 {[%emt 0:00:07]} 47. Qe8 {[%emt 0:00:04]} Bb4+ {[%emt 0:00:07]} 48. Kc2 {[%emt 0:00:07]} Kd6 {[%emt 0:02:21]} 49. Qd7+ {[%emt 0:00:13] Kd5} 1-0

[Event "FWCT 2019"]
[Site "Kazan"]
[Date "2019.06.09"]
[Round "8.4"]
[White "Lagno, Kateryna"]
[Black "Gunina, Valentina"]
[Result "1/2-1/2"]
[ECO "C60"]
[WhiteElo "2554"]
[BlackElo "2506"]
[Annotator "ChessBase"]
[PlyCount "73"]
[EventDate "2019.05.11"]
[EventType "tourn"]
[EventCountry "RUS"]
[SourceTitle "playchess.com"]
[Source "ChessBase"]
[SourceQuality "1"]
[TimeControl "40/5400+30:1800+30"]

1. e4 {[%emt 0:00:00]} e5 {[%emt 0:00:00]} 2. Nf3 {[%emt 0:00:00]} Nc6 {[%emt 0:00:00]} 3. Bb5 {[%emt 0:00:27]} g6 {[%emt 0:00:23]} 4. c3 {[%emt 0:01:31]} a6 {[%emt 0:01:02]} 5. Ba4 {[%emt 0:03:47]} b5 {[%emt 0:01:54]} 6. Bb3 {[%emt 0:01:46]} Bg7 {[%emt 0:00:07]} 7. a4 {[%emt 0:01:06]} bxa4 {[%emt 0:15:45]} 8. Bxa4 {[%emt 0:01:50]} Nge7 {[%emt 0:00:06]} 9. d4 {[%emt 0:00:28]} exd4 {[%emt 0:01:37]} 10. cxd4 {[%emt 0:00:11]} O-O {[%emt 0:01:33]} 11. Nc3 {[%emt 0:03:12]} a5 {[%emt 0:07:09]} 12. O-O {[%emt 0:03:39]} Ba6 {[%emt 0:01:04]} 13. Re1 {[%emt 0:04:06]} Nb4 {[%emt 0:08:11]} 14. Ne5 {[%emt 0:20:38]} c6 {[%emt 0:04:59]} 15. Bb3 {[%emt 0:01:22]} d5 {[%emt 0:02:10]} 16. exd5 {[%emt 0:01:11]} cxd5 {[%emt 0:02:07]} 17. Na2 {[%emt 0:13:11]} Nbc6 {[%emt 0:06:50]} 18. Bf4 {[%emt 0:04:14]} Nxe5 {[%emt 0:11:09]} 19. Bxe5 {[%emt 0:00:27]} Nc6 {[%emt 0:04:49]} 20. Bxg7 {[%emt 0:00:50]} Kxg7 {[%emt 0:00:01]} 21. Rc1 {[%emt 0:01:29]} Rc8 {[%emt 0:02:19]} 22. Ba4 {[%emt 0:12:28]} Qf6 {[%emt 0:02:59]} 23. Bxc6 {[%emt 0:00:25]} Rxc6 {[%emt 0:00:01]} 24. Rxc6 {[%emt 0:07:12]} Qxc6 {[%emt 0:00:24]} 25. Qd2 {[%emt 0:00:03]} Rb8 {[%emt 0:01:36]} 26. Nc3 {[%emt 0:00:09]} Rb4 {[%emt 0:05:05]} 27. Ra1 {[%emt 0:08:24]} Bb7 {[%emt 0:10:47]} 28. Rxa5 {[%emt 0:02:09]} Qb6 {[%emt 0:00:01]} 29. Rc5 {[%emt 0:00:29]} Rxb2 {[%emt 0:04:15]} 30. Qe3 {[%emt 0:00:03]} Qf6 {[%emt 0:02:21]} 31. h3 {[%emt 0:00:31]} Rb3 {[%emt 0:03:19]} 32. Rb5 {[%emt 0:01:12]} Rxb5 33. Nxb5 {[%emt 0:00:02]} Bc6 {[%emt 0:01:50]} 34. Nc3 {[%emt 0:01:00]} Qf5 {[%emt 0:00:33]} 35. Kh2 {[%emt 0:00:52]} h5 {[%emt 0:00:14]} 36. h4 {[%emt 0:00:54]} Kf8 {[%emt 0:00:32]} 37. Qh6+ {[%emt 0:01:01]} 1/2-1/2

[Event "FWCT 2019"]
[Site "Kazan"]
[Date "2019.06.10"]
[Round "9.2"]
[White "Gunina, Valentina"]
[Black "Goryachkina, Aleksandra"]
[Result "0-1"]
[ECO "B10"]
[WhiteElo "2506"]
[BlackElo "2522"]
[Annotator "ChessBase"]
[PlyCount "94"]
[EventDate "2019.05.11"]
[EventType "tourn"]
[EventCountry "RUS"]
[SourceTitle "playchess.com"]
[Source "ChessBase"]
[SourceQuality "1"]
[TimeControl "40/5400+30:1800+30"]

1. e4 {[%emt 0:00:00]} c6 {[%emt 0:00:00]} 2. Nc3 {[%emt 0:00:00]} d5 {[%emt 0:00:00]} 3. Nf3 {[%emt 0:00:05]} dxe4 {[%emt 0:00:16]} 4. Nxe4 {[%emt 0:00:06]} Nf6 {[%emt 0:00:06]} 5. Qe2 {[%emt 0:03:20]} Nxe4 {[%emt 0:00:28]} 6. Qxe4 {[%emt 0:00:05]} Qa5 {[%emt 0:00:25]} 7. Bc4 {[%emt 0:02:33]} Bf5 {[%emt 0:02:47]} 8. Qe2 {[%emt 0:03:45]} e6 {[%emt 0:00:55]} 9. Ne5 {[%emt 0:07:17]} Be7 {[%emt 0:15:18]} 10. c3 {[%emt 0:04:29]} Bf6 {[%emt 0:04:36]} 11. d4 {[%emt 0:08:04]} Bxe5 {[%emt 0:01:14]} 12. dxe5 {[%emt 0:00:04]} Nd7 {[%emt 0:01:07]} 13. g4 {[%emt 0:11:19]} Bg6 {[%emt 0:00:53]} 14. f4 {[%emt 0:01:30]} b5 {[%emt 0:05:19]} 15. b4 {[%emt 0:27:03]} Qd8 {[%emt 0:01:37]} 16. Bb3 {[%emt 0:00:04]} Qh4+ {[%emt 0:01:20]} 17. Kd1 {[%emt 0:00:52]} Rd8 {[%emt 0:08:38]} 18. Bd2 {[%emt 0:00:50]} h5 {[%emt 0:02:02]} 19. f5 {[%emt 0:02:06]} exf5 {[%emt 0:04:40]} 20. e6 {[%emt 0:00:39]} Nf6 {[%emt 0:02:48]} 21. exf7+ {[%emt 0:13:08]} Kf8 {[%emt 0:01:18]} 22. Kc1 {[%emt 0:01:13]} Ne4 {[%emt 0:08:17]} 23. Be1 {[%emt 0:11:22]} Qg5+ {[%emt 0:11:07]} 24. Kb2 {[%emt 0:00:01]} hxg4 {[%emt 0:00:36]} 25. a4 {[%emt 0:00:09]} Bxf7 {[%emt 0:02:35]} 26. Bxf7 {[%emt 0:00:12]} Kxf7 {[%emt 0:00:17]} 27. axb5 {[%emt 0:00:01]} cxb5 {[%emt 0:01:35]} 28. Rxa7+ {[%emt 0:00:19]} Kg6 {[%emt 0:00:52]} 29. Qxb5 {[%emt 0:00:52]} Rd1 {[%emt 0:04:18]} 30. Qc6+ {[%emt 0:02:10]} Kh7 {[%emt 0:02:14]} 31. Qc7 {[%emt 0:01:07]} Rg8 {[%emt 0:02:10]} 32. Kb3 {[%emt 0:00:40]} Rb1+ {[%emt 0:00:25]} 33. Ka4 {[%emt 0:00:24]} Qe3 {[%emt 0:03:18]} 34. Kb5 {[%emt 0:00:39]} Rxe1 {[%emt 0:02:02]} 35. Rxe1 {[%emt 0:00:14]} Qxe1 {[%emt 0:00:12]} 36. c4 {[%emt 0:00:39]} Nc3+ {[%emt 0:04:50]} 37. Ka5 {[%emt 0:00:26]} Qa1+ {[%emt 0:01:34]} 38. Kb6 {[%emt 0:00:01]} Qg1+ {[%emt 0:00:23]} 39. Ka6 {[%emt 0:01:02]} Qd4 {[%emt 0:02:27]} 40. Qf7 {[%emt 0:00:00]} Qd6+ {[%emt 0:00:00]} 41. Ka5 {[%emt 0:02:21]} Qg6 {[%emt 0:03:20]} 42. Qd7 {[%emt 0:02:04]} Rf8 {[%emt 0:01:31]} 43. c5 {[%emt 0:04:24]} f4 {[%emt 0:03:41]} 44. Ra6 {[%emt 0:04:25]} Qf5 {[%emt 0:04:20]} 45. Qd4 {[%emt 0:03:31]} Qc2 {[%emt 0:04:31]} 46. Kb6 {[%emt 0:03:24]} Rb8+ {[%emt 0:00:39]} 47. Kc6 {[%emt 0:00:55]} Qg2+ {[%emt 0:00:25]} 0-1

[Event "FWCT 2019"]
[Site "Kazan"]
[Date "2019.06.10"]
[Round "9.4"]
[White "Muzychuk, Mariya"]
[Black "Tan, Zhongyi"]
[Result "1-0"]
[ECO "C77"]
[WhiteElo "2563"]
[BlackElo "2513"]
[Annotator "ChessBase"]
[PlyCount "85"]
[EventDate "2019.05.11"]
[EventType "tourn"]
[EventCountry "RUS"]
[SourceTitle "playchess.com"]
[Source "ChessBase"]
[SourceQuality "1"]
[TimeControl "40/5400+30:1800+30"]

1. e4 {[%emt 0:00:00]} e5 {[%emt 0:00:00]} 2. Nf3 {[%emt 0:00:00]} Nc6 {[%emt 0:00:00]} 3. Bb5 {[%emt 0:00:09]} a6 {[%emt 0:00:00]} 4. Ba4 {[%emt 0:00:22]} Nf6 {[%emt 0:00:00]} 5. d3 {[%emt 0:02:02]} b5 {[%emt 0:03:59]} 6. Bb3 {[%emt 0:00:06]} Bc5 {[%emt 0:00:06]} 7. O-O {[%emt 0:03:09]} d6 {[%emt 0:05:32]} 8. c3 {[%emt 0:02:14]} Bb6 {[%emt 0:00:27]} 9. Be3 {[%emt 0:07:17]} Bxe3 {[%emt 0:03:37]} 10. fxe3 {[%emt 0:00:04]} O-O {[%emt 0:00:15]} 11. Nbd2 {[%emt 0:01:17]} Na5 {[%emt 0:00:49]} 12. Bc2 {[%emt 0:01:05]} c5 {[%emt 0:00:08]} 13. Qe1 {[%emt 0:02:04]} Nc6 {[%emt 0:01:43]} 14. h3 {[%emt 0:02:24]} Ra7 {[%emt 0:02:17]} 15. Qf2 {[%emt 0:06:32]} a5 {[%emt 0:06:36]} 16. a4 {[%emt 0:04:40]} b4 {[%emt 0:00:22]} 17. Bb3 {[%emt 0:05:10]} Be6 {[%emt 0:03:26]} 18. Bc4 {[%emt 0:07:13]} Nd7 {[%emt 0:10:52]} 19. Bb5 {[%emt 0:02:27]} Ndb8 {[%emt 0:04:11]} 20. d4 {[%emt 0:11:58]} bxc3 {[%emt 0:09:20]} 21. bxc3 {[%emt 0:00:04]} cxd4 {[%emt 0:00:43]} 22. exd4 {[%emt 0:00:16]} exd4 {[%emt 0:00:15]} 23. Nxd4 {[%emt 0:02:05]} Nxd4 {[%emt 0:00:55]} 24. cxd4 {[%emt 0:00:04]} d5 {[%emt 0:00:12]} 25. e5 {[%emt 0:01:14]} f6 {[%emt 0:13:53]} 26. Qe3 {[%emt 0:03:26]} Raf7 {[%emt 0:01:42]} 27. Nf3 {[%emt 0:04:40]} Nd7 {[%emt 0:00:36]} 28. exf6 {[%emt 0:06:44]} Rxf6 {[%emt 0:00:25]} 29. Ng5 {[%emt 0:01:23]} Bf5 {[%emt 0:08:32]} 30. Rae1 {[%emt 0:11:10]} Rg6 {[%emt 0:03:35]} 31. h4 {[%emt 0:00:57]} h6 {[%emt 0:00:19]} 32. Rxf5 {[%emt 0:04:34]} Rxf5 {[%emt 0:00:11]} 33. Bd3 {[%emt 0:00:05]} Rfxg5 {[%emt 0:09:16]} 34. hxg5 {[%emt 0:00:04]} Rd6 {[%emt 0:00:05]} 35. Qe8+ {[%emt 0:06:28]} Nf8 {[%emt 0:00:43]} 36. Qxd8 {[%emt 0:03:21]} Rxd8 {[%emt 0:00:05]} 37. g6 {[%emt 0:00:30]} Rb8 {[%emt 0:00:22]} 38. Re5 {[%emt 0:00:36]} Rd8 {[%emt 0:04:29]} 39. g4 {[%emt 0:00:41]} Kh8 {[%emt 0:01:50]} 40. Bf5 {[%emt 0:00:00]} Rd6 {[%emt 0:00:00]} 41. Re8 {[%emt 0:01:49]} Rf6 {[%emt 0:00:50]} 42. Be6 {[%emt 0:02:35]} h5 {[%emt 0:02:41]} 43. Bf7 {[%emt 0:00:31]} 1-0

[Event "FWCT 2019"]
[Site "Kazan"]
[Date "2019.06.12"]
[Round "10.1"]
[White "Kosteniuk, Alexandra"]
[Black "Gunina, Valentina"]
[Result "1-0"]
[ECO "C65"]
[WhiteElo "2546"]
[BlackElo "2506"]
[Annotator "ChessBase"]
[PlyCount "81"]
[EventDate "2019.05.11"]
[EventType "tourn"]
[EventCountry "RUS"]
[SourceTitle "playchess.com"]
[Source "ChessBase"]
[SourceQuality "1"]
[TimeControl "40/5400+30:1800+30"]

1. e4 {[%emt 0:00:00]} e5 {[%emt 0:00:00]} 2. Nf3 {[%emt 0:00:00]} Nc6 {[%emt 0:00:00]} 3. Bb5 {[%emt 0:00:00]} Nf6 {[%emt 0:00:06]} 4. d4 {[%emt 0:00:00]} Nxd4 {[%emt 0:22:41]} 5. Nxd4 {[%emt 0:00:34]} exd4 {[%emt 0:00:03]} 6. e5 {[%emt 0:00:15]} c6 {[%emt 0:01:45]} 7. Qxd4 {[%emt 0:11:32]} Nd5 {[%emt 0:12:10]} 8. Bc4 {[%emt 0:00:26]} Nb6 {[%emt 0:02:38]} 9. Nd2 {[%emt 0:01:41]} d5 {[%emt 0:03:49]} 10. Bd3 {[%emt 0:00:28]} c5 {[%emt 0:14:24]} 11. Qf4 {[%emt 0:00:49]} c4 {[%emt 0:07:05]} 12. Be2 {[%emt 0:00:13]} Be7 {[%emt 0:03:27]} 13. Nf3 {[%emt 0:03:12]} O-O {[%emt 0:04:07]} 14. Qg3 {[%emt 0:02:43]} Bf5 {[%emt 0:08:46]} 15. h4 {[%emt 0:07:43]} f6 {[%emt 0:03:59]} 16. Bh6 {[%emt 0:02:15]} Rf7 {[%emt 0:00:30]} 17. O-O-O {[%emt 0:12:06]} Qd7 {[%emt 0:00:51]} 18. Kb1 {[%emt 0:06:47]} Na4 {[%emt 0:02:30]} 19. Nd4 {[%emt 0:17:38]} fxe5 {[%emt 0:06:48]} 20. Nxf5 {[%emt 0:00:34]} Qxf5 {[%emt 0:00:02]} 21. Rxd5 {[%emt 0:00:30]} Bf6 {[%emt 0:04:02]} 22. Bg4 {[%emt 0:03:20]} Qg6 {[%emt 0:00:01]} 23. Be3 {[%emt 0:00:28]} Re7 {[%emt 0:00:52]} 24. Rhd1 {[%emt 0:03:22]} Rf8 {[%emt 0:00:01]} 25. Rd6 {[%emt 0:11:55]} Qf7 {[%emt 0:00:41]} 26. Qh3 {[%emt 0:00:16]} Kh8 {[%emt 0:00:55]} 27. Be6 {[%emt 0:02:56]} Qh5 {[%emt 0:00:21]} 28. Bxc4 {[%emt 0:00:12]} e4 {[%emt 0:00:38]} 29. R6d5 {[%emt 0:05:20]} Re5 {[%emt 0:00:11]} 30. c3 {[%emt 0:02:05]} b5 {[%emt 0:01:00]} 31. g4 {[%emt 0:00:54]} Qf7 {[%emt 0:00:28]} 32. Bb3 {[%emt 0:00:23]} Rxd5 {[%emt 0:00:16]} 33. Rxd5 {[%emt 0:00:06]} Qc7 {[%emt 0:00:42]} 34. g5 {[%emt 0:00:42]} Bxc3 {[%emt 0:00:28]} 35. Bxa4 {[%emt 0:00:34]} Bxb2 {[%emt 0:00:36]} 36. Qd7 {[%emt 0:03:14]} Qc3 {[%emt 0:00:28]} 37. Qxb5 {[%emt 0:01:10]} Ba3 {[%emt 0:00:33]} 38. Qb3 {[%emt 0:00:18]} Qe1+ {[%emt 0:00:33]} 39. Rd1 {[%emt 0:00:19]} Qa5 {[%emt 0:00:29]} 40. Qxa3 {[%emt 0:00:00]} Rb8+ {[%emt 0:00:00]} 41. Ka1 {[%emt 0:00:35]} 1-0

[Event "FWCT 2019"]
[Site "Kazan"]
[Date "2019.06.12"]
[Round "10.2"]
[White "Lagno, Kateryna"]
[Black "Goryachkina, Aleksandra"]
[Result "1/2-1/2"]
[ECO "B19"]
[WhiteElo "2554"]
[BlackElo "2522"]
[Annotator "ChessBase"]
[PlyCount "84"]
[EventDate "2019.05.11"]
[EventType "tourn"]
[EventCountry "RUS"]
[SourceTitle "playchess.com"]
[Source "ChessBase"]
[SourceQuality "1"]
[TimeControl "40/5400+30:1800+30"]

1. e4 {[%emt 0:00:00]} c6 {[%emt 0:00:00]} 2. d4 {[%emt 0:00:00]} d5 {[%emt 0:00:00]} 3. Nc3 {[%emt 0:00:02]} dxe4 {[%emt 0:00:02]} 4. Nxe4 {[%emt 0:00:05]} Bf5 {[%emt 0:00:20]} 5. Ng3 {[%emt 0:00:38]} Bg6 {[%emt 0:00:23]} 6. h4 {[%emt 0:00:18]} h6 {[%emt 0:00:36]} 7. Nf3 {[%emt 0:00:21]} Nd7 {[%emt 0:00:50]} 8. Bd3 {[%emt 0:01:05]} Bxd3 {[%emt 0:01:46]} 9. Qxd3 {[%emt 0:00:06]} e6 {[%emt 0:00:24]} 10. Bf4 {[%emt 0:00:35]} Qa5+ {[%emt 0:05:58]} 11. Bd2 {[%emt 0:00:55]} Qc7 {[%emt 0:00:57]} 12. O-O-O {[%emt 0:00:49]} Ngf6 {[%emt 0:01:22]} 13. Ne4 {[%emt 0:02:03]} Nxe4 {[%emt 0:02:23]} 14. Qxe4 {[%emt 0:00:08]} Nf6 {[%emt 0:00:40]} 15. Qe2 {[%emt 0:00:40]} Bd6 {[%emt 0:01:45]} 16. Kb1 {[%emt 0:03:49]} O-O-O {[%emt 0:06:43]} 17. c4 {[%emt 0:01:16]} c5 {[%emt 0:06:01]} 18. Bc3 {[%emt 0:00:46]} Rhe8 {[%emt 0:03:09]} 19. Rhe1 {[%emt 0:21:33]} a6 {[%emt 0:08:38]} 20. a3 {[%emt 0:18:28]} Qb6 {[%emt 0:06:52]} 21. Ka2 {[%emt 0:08:54]} Bc7 {[%emt 0:07:19]} 22. Qc2 {[%emt 0:04:17]} Qc6 {[%emt 0:03:12]} 23. dxc5 {[%emt 0:18:07]} Qxc5 {[%emt 0:01:10]} 24. Rxd8+ {[%emt 0:01:42]} Rxd8 {[%emt 0:01:18]} 25. Ne5 {[%emt 0:00:02]} Bxe5 {[%emt 0:07:14]} 26. Bxe5 {[%emt 0:00:04]} Ne8 {[%emt 0:00:36]} 27. f3 {[%emt 0:05:37]} Qc6 {[%emt 0:07:40]} 28. Qe2 {[%emt 0:02:05]} f6 {[%emt 0:06:44]} 29. Bg3 {[%emt 0:01:41]} e5 {[%emt 0:01:15]} 30. f4 {[%emt 0:00:07]} Rd4 {[%emt 0:05:45]} 31. fxe5 {[%emt 0:00:11]} Qxc4+ {[%emt 0:00:51]} 32. Qxc4+ {[%emt 0:00:08]} Rxc4 {[%emt 0:00:03]} 33. exf6 {[%emt 0:00:49]} Nxf6 {[%emt 0:00:06]} 34. Re7 {[%emt 0:00:51]} Nh5 {[%emt 0:02:00]} 35. Be5 {[%emt 0:02:16]} Re4 {[%emt 0:01:39]} 36. g4 {[%emt 0:00:39]} Rxg4 {[%emt 0:02:58]} 37. Rc7+ {[%emt 0:00:07]} Kd8 {[%emt 0:00:12]} 38. Rxb7 {[%emt 0:00:10]} Rxh4 {[%emt 0:00:34]} 39. Bxg7 {[%emt 0:00:44]} Nxg7 {[%emt 0:00:27]} 40. Rxg7 {[%emt 0:00:00]} a5 {[%emt 0:00:00]} 41. Kb3 {[%emt 0:01:22]} a4+ {[%emt 0:02:17]} 42. Kc3 {[%emt 0:03:03]} Rh3+ {[%emt 0:01:19]} 1/2-1/2

[Event "FWCT 2019"]
[Site "Kazan"]
[Date "2019.06.12"]
[Round "10.3"]
[White "Muzychuk, Anna"]
[Black "Tan, Zhongyi"]
[Result "1/2-1/2"]
[ECO "C50"]
[WhiteElo "2539"]
[BlackElo "2513"]
[Annotator "ChessBase"]
[PlyCount "59"]
[EventDate "2019.05.11"]
[EventType "tourn"]
[EventCountry "RUS"]
[SourceTitle "playchess.com"]
[Source "ChessBase"]
[SourceQuality "1"]
[TimeControl "40/5400+30:1800+30"]

1. e4 {[%emt 0:00:00]} e5 {[%emt 0:00:00]} 2. Nf3 {[%emt 0:00:00]} Nc6 {[%emt 0:00:00]} 3. Bc4 {[%emt 0:00:00]} Nf6 {[%emt 0:00:00]} 4. d3 {[%emt 0:00:40]} Bc5 {[%emt 0:00:16]} 5. c3 {[%emt 0:00:17]} d6 {[%emt 0:03:00]} 6. O-O {[%emt 0:00:15]} a6 {[%emt 0:01:08]} 7. a4 {[%emt 0:00:29]} Ba7 {[%emt 0:00:39]} 8. Re1 {[%emt 0:00:19]} O-O {[%emt 0:01:58]} 9. h3 {[%emt 0:00:26]} Kh8 {[%emt 0:09:49]} 10. d4 {[%emt 0:13:31]} h6 {[%emt 0:02:38]} 11. dxe5 {[%emt 0:10:00]} Nxe5 {[%emt 0:00:29]} 12. Nxe5 {[%emt 0:00:07]} dxe5 {[%emt 0:00:06]} 13. Qxd8 {[%emt 0:00:16]} Rxd8 {[%emt 0:00:05]} 14. Nd2 {[%emt 0:00:35]} Kg8 {[%emt 0:01:14]} 15. Nf3 {[%emt 0:05:04]} Re8 {[%emt 0:01:05]} 16. Be3 {[%emt 0:01:34]} Bxe3 {[%emt 0:03:01]} 17. Rxe3 {[%emt 0:00:07]} Bd7 {[%emt 0:00:33]} 18. Ne1 {[%emt 0:05:19]} b5 {[%emt 0:08:59]} 19. Be2 {[%emt 0:04:34]} c5 {[%emt 0:10:11]} 20. Nd3 {[%emt 0:10:57]} c4 {[%emt 0:00:22]} 21. Nb4 {[%emt 0:05:37]} Be6 {[%emt 0:00:15]} 22. Bd1 {[%emt 0:03:04]} Kf8 {[%emt 0:01:36]} 23. Bc2 {[%emt 0:02:21]} Nd7 {[%emt 0:05:05]} 24. a5 {[%emt 0:02:36]} Nc5 {[%emt 0:03:37]} 25. Ree1 {[%emt 0:00:19]} Red8 {[%emt 0:00:39]} 26. Red1 {[%emt 0:00:23]} Rac8 {[%emt 0:02:43]} 27. f3 {[%emt 0:00:53]} Ke8 {[%emt 0:00:21]} 28. Kf2 {[%emt 0:00:54]} f6 {[%emt 0:01:28]} 29. Ke3 {[%emt 0:00:31]} Rxd1 {[%emt 0:00:30]} 30. Rxd1 {[%emt 0:00:11]} 1/2-1/2